[Event "Titled Tuesday Blitz May 9 Early 2023"]
[White "Fan_Of_Chucky"]
[Black "Rodriguez Santiago, Jaime"]
[BlackFideId "3100898"]
[WhiteElo "2388"]
[BlackElo "2025"]
[Result "1-0"]
[Round "07"]
[TimeControl "180+2"]
[Date "2023.05.09"]
[WhiteClock "0:00:05"]
[BlackClock "0:00:25"]

1. d4 {[%clk 0:03:00]}  Nf6 {[%clk 0:02:58]} 2. c4 {[%clk 0:03:00]}  e6 {[%clk 0:02:58]} 3. Nf3 {[%clk 0:02:59]}  d5 {[%clk 0:02:57]} 4. g3 {[%clk 0:02:58]}  dxc4 {[%clk 0:02:56]} 5. Bg2 {[%clk 0:02:56]}  c5 {[%clk 0:02:56]} 6. O-O {[%clk 0:02:54]}  Nc6 {[%clk 0:02:56]} 7. Qa4 {[%clk 0:02:54]}  Bd7 {[%clk 0:02:55]} 8. Qxc4 {[%clk 0:02:52]}  b5 {[%clk 0:02:56]} 9. Qc3 {[%clk 0:02:14]}  c4 {[%clk 0:02:46]} 10. Ne5 {[%clk 0:02:10]}  Rc8 {[%clk 0:02:46]} 11. Bxc6 {[%clk 0:02:04]}  Bxc6 {[%clk 0:02:44]} 12. a4 {[%clk 0:02:02]}  b4 {[%clk 0:02:41]} 13. Qxc4 {[%clk 0:02:00]}  Bd7 {[%clk 0:02:18]} 14. Qd3 {[%clk 0:01:54]}  Be7 {[%clk 0:02:15]} 15. Nd2 {[%clk 0:01:49]}  O-O {[%clk 0:02:14]} 16. Ne4 {[%clk 0:01:44]}  Be8 {[%clk 0:02:08]} 17. Nc5 {[%clk 0:01:41]}  Bxc5 {[%clk 0:02:04]} 18. dxc5 {[%clk 0:01:42]}  Qc7 {[%clk 0:01:59]} 19. Qd6 {[%clk 0:01:38]}  Ne4 {[%clk 0:01:53]} 20. Qxc7 {[%clk 0:01:31]}  Rxc7 {[%clk 0:01:54]} 21. Nd3 {[%clk 0:01:27]}  Nxc5 {[%clk 0:01:50]} 22. Bf4 {[%clk 0:01:23]}  Rc6 {[%clk 0:01:48]} 23. Nxc5 {[%clk 0:01:22]}  Rxc5 {[%clk 0:01:46]} 24. Bd6 {[%clk 0:01:22]}  Rc2 {[%clk 0:01:44]} 25. Bxb4 {[%clk 0:01:19]}  Rxb2 {[%clk 0:01:42]} 26. Bxf8 {[%clk 0:01:18]}  Kxf8 {[%clk 0:01:43]} 27. e3 {[%clk 0:01:15]}  a5 {[%clk 0:01:43]} 28. Rfc1 {[%clk 0:01:12]}  Rb4 {[%clk 0:01:42]} 29. Rc5 {[%clk 0:01:12]}  Bxa4 {[%clk 0:01:35]} 30. Rxa5 {[%clk 0:01:09]}  Bb5 {[%clk 0:01:26]} 31. Ra8+ {[%clk 0:01:03]}  Ke7 {[%clk 0:01:25]} 32. Rb8 {[%clk 0:01:04]}  Kf6 {[%clk 0:01:18]} 33. e4 {[%clk 0:00:47]}  h5 {[%clk 0:01:13]} 34. Rc1 {[%clk 0:00:33]}  h4 {[%clk 0:01:11]} 35. gxh4 {[%clk 0:00:30]}  Rb2 {[%clk 0:00:59]} 36. h3 {[%clk 0:00:27]}  g6 {[%clk 0:00:57]} 37. Kh2 {[%clk 0:00:27]}  Rxf2+ {[%clk 0:00:56]} 38. Kg3 {[%clk 0:00:28]}  Rb2 {[%clk 0:00:52]} 39. Rc5 {[%clk 0:00:28]}  Rb3+ {[%clk 0:00:52]} 40. Kf4 {[%clk 0:00:24]}  Ba4 {[%clk 0:00:41]} 41. Rxb3 {[%clk 0:00:24]}  Bxb3 {[%clk 0:00:42]} 42. e5+ {[%clk 0:00:22]}  Kg7 {[%clk 0:00:41]} 43. Kg5 {[%clk 0:00:22]}  Bd5 {[%clk 0:00:42]} 44. Rc7 {[%clk 0:00:21]}  Be4 {[%clk 0:00:41]} 45. h5 {[%clk 0:00:21]}  gxh5 {[%clk 0:00:41]} 46. Kxh5 {[%clk 0:00:21]}  Bf5 {[%clk 0:00:39]} 47. Kg5 {[%clk 0:00:22]}  Bg6 {[%clk 0:00:38]} 48. h4 {[%clk 0:00:21]}  Be4 {[%clk 0:00:37]} 49. h5 {[%clk 0:00:22]}  Bf5 {[%clk 0:00:37]} 50. h6+ {[%clk 0:00:21]}  Kg8 {[%clk 0:00:37]} 51. Kf6 {[%clk 0:00:05]}  Bg6 {[%clk 0:00:35]} 52. Rc8+ {[%clk 0:00:03]}  Kh7 {[%clk 0:00:35]} 53. Kg5 {[%clk 0:00:04]}  Bf5 {[%clk 0:00:33]} 54. Rf8 {[%clk 0:00:04]}  Bg6 {[%clk 0:00:33]} 55. Ra8 {[%clk 0:00:03]}  Bf5 {[%clk 0:00:33]} 56. Rb8 {[%clk 0:00:04]}  Bg6 {[%clk 0:00:33]} 57. Rf8 {[%clk 0:00:04]}  Bf5 {[%clk 0:00:27]} 58. Rxf7+ {[%clk 0:00:05]}  Kh8 {[%clk 0:00:28]} 59. Rxf5 {[%clk 0:00:04]}  exf5 {[%clk 0:00:28]} 60. Kxf5 {[%clk 0:00:05]}  Kh7 {[%clk 0:00:25]} 61. Kf6 {[%clk 0:00:05]} 1-0


[Site "https://www.chess.com"]

[Event "Titled Tuesday Blitz May 9 Early 2023"]
[White "Goswami, Vedant"]
[Black "Sailer, Mike"]
[WhiteFideId "5003725"]
[BlackFideId "2012901"]
[WhiteElo "2011"]
[BlackElo "2109"]
[Result "1-0"]
[Round "07"]
[TimeControl "180+2"]
[Date "2023.05.09"]
[WhiteClock "0:02:28"]
[BlackClock "0:01:06"]

1. e3 {[%clk 0:03:00]}  d5 {[%clk 0:02:59]} 2. c4 {[%clk 0:02:59]}  Bf5 {[%clk 0:02:53]} 3. cxd5 {[%clk 0:02:58]}  Qxd5 {[%clk 0:02:53]} 4. Nc3 {[%clk 0:02:57]}  Qa5 {[%clk 0:02:53]} 5. e4 {[%clk 0:02:53]}  Bg6 {[%clk 0:02:42]} 6. b4 {[%clk 0:02:45]}  Qxb4 {[%clk 0:02:09]} 7. Rb1 {[%clk 0:02:43]}  Qa5 {[%clk 0:01:31]} 8. Rxb7 {[%clk 0:02:41]}  Nd7 {[%clk 0:01:16]} 9. Rb5 {[%clk 0:02:33]}  Qa6 {[%clk 0:01:08]} 10. Rb8+ {[%clk 0:02:32]}  Nxb8 {[%clk 0:01:07]} 11. Bxa6 {[%clk 0:02:31]}  Nxa6 {[%clk 0:01:08]} 12. Qa4+ {[%clk 0:02:29]}  c6 {[%clk 0:01:06]} 13. Qxc6+ {[%clk 0:02:28]} 1-0


[Site "https://www.chess.com"]

[Event "Titled Tuesday Blitz May 9 Early 2023"]
[White "Benmesbah, Natacha"]
[Black "Michelle Catherina, P"]
[WhiteFideId "642002"]
[BlackFideId "5005736"]
[WhiteElo "2263"]
[BlackElo "2049"]
[Result "0-1"]
[Round "07"]
[TimeControl "180+2"]
[Date "2023.05.09"]
[WhiteClock "0:00:06"]
[BlackClock "0:00:03"]

1. e4 {[%clk 0:03:00]}  c6 {[%clk 0:02:28]} 2. Nc3 {[%clk 0:02:58]}  d5 {[%clk 0:02:27]} 3. Nf3 {[%clk 0:02:57]}  Bg4 {[%clk 0:02:22]} 4. h3 {[%clk 0:02:56]}  Bxf3 {[%clk 0:02:21]} 5. Qxf3 {[%clk 0:02:57]}  e6 {[%clk 0:02:20]} 6. Be2 {[%clk 0:02:57]}  Nd7 {[%clk 0:02:20]} 7. d4 {[%clk 0:02:53]}  dxe4 {[%clk 0:02:15]} 8. Nxe4 {[%clk 0:02:46]}  Ngf6 {[%clk 0:02:16]} 9. O-O {[%clk 0:02:46]}  Be7 {[%clk 0:02:15]} 10. Rd1 {[%clk 0:02:42]}  O-O {[%clk 0:02:14]} 11. a4 {[%clk 0:02:17]}  Nxe4 {[%clk 0:02:12]} 12. Qxe4 {[%clk 0:02:17]}  Nf6 {[%clk 0:02:13]} 13. Qd3 {[%clk 0:02:07]}  Qd5 {[%clk 0:02:05]} 14. Bf3 {[%clk 0:02:05]}  Qd7 {[%clk 0:02:01]} 15. a5 {[%clk 0:02:04]}  a6 {[%clk 0:01:58]} 16. Bf4 {[%clk 0:01:31]}  Nd5 {[%clk 0:01:51]} 17. Bg3 {[%clk 0:01:28]}  Bd6 {[%clk 0:01:49]} 18. Be5 {[%clk 0:01:21]}  Nf4 {[%clk 0:01:39]} 19. Qe3 {[%clk 0:01:10]}  Ng6 {[%clk 0:01:38]} 20. Bxd6 {[%clk 0:01:09]}  Qxd6 {[%clk 0:01:38]} 21. Ra3 {[%clk 0:01:08]}  Rad8 {[%clk 0:01:34]} 22. g3 {[%clk 0:01:05]}  Ne7 {[%clk 0:01:25]} 23. Rb3 {[%clk 0:01:04]}  Nf5 {[%clk 0:01:14]} 24. Qe5 {[%clk 0:00:52]}  Nxd4 {[%clk 0:01:05]} 25. Qxd6 {[%clk 0:00:47]}  Rxd6 {[%clk 0:01:04]} 26. Rxd4 {[%clk 0:00:45]}  Rxd4 {[%clk 0:01:03]} 27. Rxb7 {[%clk 0:00:46]}  Ra4 {[%clk 0:00:54]} 28. b4 {[%clk 0:00:44]}  c5 {[%clk 0:00:49]} 29. bxc5 {[%clk 0:00:43]}  Rxa5 {[%clk 0:00:49]} 30. c6 {[%clk 0:00:44]}  Rc5 {[%clk 0:00:47]} 31. Be4 {[%clk 0:00:42]}  f5 {[%clk 0:00:43]} 32. Bf3 {[%clk 0:00:42]}  Rxc2 {[%clk 0:00:41]} 33. Ra7 {[%clk 0:00:41]}  Rc8 {[%clk 0:00:18]} 34. Rxa6 {[%clk 0:00:39]}  Rc5 {[%clk 0:00:17]} 35. Ra7 {[%clk 0:00:38]}  e5 {[%clk 0:00:17]} 36. Re7 {[%clk 0:00:20]}  e4 {[%clk 0:00:16]} 37. Bd1 {[%clk 0:00:16]}  Rc1 {[%clk 0:00:15]} 38. Rd7 {[%clk 0:00:16]}  R8xc6 {[%clk 0:00:14]} 39. Kg2 {[%clk 0:00:17]}  Rc8 {[%clk 0:00:11]} 40. Bb3+ {[%clk 0:00:17]}  Kh8 {[%clk 0:00:10]} 41. Be6 {[%clk 0:00:17]}  g6 {[%clk 0:00:10]} 42. h4 {[%clk 0:00:14]}  Re8 {[%clk 0:00:09]} 43. Bf7 {[%clk 0:00:10]}  Rf8 {[%clk 0:00:09]} 44. h5 {[%clk 0:00:10]}  Kg7 {[%clk 0:00:07]} 45. hxg6 {[%clk 0:00:10]}  hxg6 {[%clk 0:00:08]} 46. Bb3+ {[%clk 0:00:10]}  Kf6 {[%clk 0:00:08]} 47. Rd6+ {[%clk 0:00:10]}  Kg5 {[%clk 0:00:07]} 48. Be6 {[%clk 0:00:09]}  Rc2 {[%clk 0:00:06]} 49. Rb6 {[%clk 0:00:09]}  e3 {[%clk 0:00:06]} 50. Kh3 {[%clk 0:00:06]}  Rxf2 {[%clk 0:00:05]} 51. Bg8 {[%clk 0:00:05]}  Rxg8 {[%clk 0:00:05]} 52. g4 {[%clk 0:00:06]}  Rh8+ {[%clk 0:00:02]} 53. Kg3 {[%clk 0:00:06]}  f4# {[%clk 0:00:03]} 0-1


[Site "https://www.chess.com"]

[Event "Titled Tuesday Blitz May 9 Early 2023"]
[White "Pasti, Aron"]
[Black "KSho99"]
[WhiteFideId "785857"]
[WhiteElo "2173"]
[BlackElo "2154"]
[Result "1-0"]
[Round "07"]
[TimeControl "180+2"]
[Date "2023.05.09"]
[WhiteClock "0:00:21"]
[BlackClock "0:00:00"]

1. e4 {[%clk 0:02:59]}  e6 {[%clk 0:03:00]} 2. d4 {[%clk 0:02:58]}  d5 {[%clk 0:03:00]} 3. Nc3 {[%clk 0:02:58]}  Be7 {[%clk 0:03:01]} 4. e5 {[%clk 0:02:56]}  c5 {[%clk 0:03:00]} 5. Nce2 {[%clk 0:02:56]}  cxd4 {[%clk 0:02:46]} 6. Nxd4 {[%clk 0:02:57]}  Nc6 {[%clk 0:02:42]} 7. Ngf3 {[%clk 0:02:57]}  Bd7 {[%clk 0:02:28]} 8. Bd3 {[%clk 0:02:49]}  Qb6 {[%clk 0:02:09]} 9. c3 {[%clk 0:02:46]}  Nh6 {[%clk 0:01:57]} 10. O-O {[%clk 0:02:40]}  Ng4 {[%clk 0:01:35]} 11. Bf4 {[%clk 0:02:28]}  h5 {[%clk 0:01:16]} 12. b4 {[%clk 0:02:12]}  Rc8 {[%clk 0:01:00]} 13. Nb5 {[%clk 0:01:51]}  a6 {[%clk 0:00:55]} 14. Nd6+ {[%clk 0:01:47]}  Bxd6 {[%clk 0:00:55]} 15. exd6 {[%clk 0:01:48]}  e5 {[%clk 0:00:49]} 16. Re1 {[%clk 0:01:44]}  f6 {[%clk 0:00:45]} 17. Bg3 {[%clk 0:01:40]}  O-O {[%clk 0:00:36]} 18. Bg6 {[%clk 0:01:40]}  Be6 {[%clk 0:00:32]} 19. Bxh5 {[%clk 0:01:35]}  Nh6 {[%clk 0:00:30]} 20. Nh4 {[%clk 0:01:34]}  Rcd8 {[%clk 0:00:24]} 21. Ng6 {[%clk 0:01:33]}  Rxd6 {[%clk 0:00:23]} 22. Nxf8 {[%clk 0:01:33]}  Kxf8 {[%clk 0:00:23]} 23. Qf3 {[%clk 0:01:30]}  Nf5 {[%clk 0:00:20]} 24. Bg4 {[%clk 0:01:14]}  Nxg3 {[%clk 0:00:20]} 25. hxg3 {[%clk 0:01:07]}  Bxg4 {[%clk 0:00:20]} 26. Qxg4 {[%clk 0:01:08]}  Ne7 {[%clk 0:00:19]} 27. Rad1 {[%clk 0:01:07]}  Qc6 {[%clk 0:00:19]} 28. Qf3 {[%clk 0:01:07]}  Qc4 {[%clk 0:00:18]} 29. Re2 {[%clk 0:01:08]}  Rc6 {[%clk 0:00:16]} 30. Rxe5 {[%clk 0:01:03]}  Qxc3 {[%clk 0:00:13]} 31. Qxc3 {[%clk 0:00:57]}  Rxc3 {[%clk 0:00:12]} 32. Re2 {[%clk 0:00:58]}  Ra3 {[%clk 0:00:10]} 33. Rc1 {[%clk 0:00:57]}  Nc6 {[%clk 0:00:10]} 34. b5 {[%clk 0:00:54]}  axb5 {[%clk 0:00:10]} 35. Rc5 {[%clk 0:00:54]}  Nb4 {[%clk 0:00:02]} 36. Rxb5 {[%clk 0:00:52]}  Rxa2 {[%clk 0:00:02]} 37. Rxa2 {[%clk 0:00:52]}  Nxa2 {[%clk 0:00:03]} 38. Rxd5 {[%clk 0:00:51]}  Nc3 {[%clk 0:00:03]} 39. Rd8+ {[%clk 0:00:49]}  Ke7 {[%clk 0:00:02]} 40. Rb8 {[%clk 0:00:48]}  b5 {[%clk 0:00:02]} 41. Rc8 {[%clk 0:00:48]}  Ne2+ {[%clk 0:00:01]} 42. Kf1 {[%clk 0:00:48]}  Nd4 {[%clk 0:00:02]} 43. Rb8 {[%clk 0:00:46]}  Kd6 {[%clk 0:00:02]} 44. Ke1 {[%clk 0:00:45]}  Kc5 {[%clk 0:00:02]} 45. Kd2 {[%clk 0:00:45]}  Kc4 {[%clk 0:00:02]} 46. Rc8+ {[%clk 0:00:44]}  Kb4 {[%clk 0:00:02]} 47. Rc7 {[%clk 0:00:44]}  Nb3+ {[%clk 0:00:02]} 48. Kc2 {[%clk 0:00:26]}  g5 {[%clk 0:00:02]} 49. Kb2 {[%clk 0:00:24]}  Nd4 {[%clk 0:00:02]} 50. f4 {[%clk 0:00:23]}  gxf4 {[%clk 0:00:02]} 51. gxf4 {[%clk 0:00:24]}  Ne6 {[%clk 0:00:02]} 52. Rc6 {[%clk 0:00:23]}  Nxf4 {[%clk 0:00:02]} 53. g3 {[%clk 0:00:23]}  Nd3+ {[%clk 0:00:02]} 54. Kc2 {[%clk 0:00:22]}  Nc5 {[%clk 0:00:00]} 55. Rxf6 {[%clk 0:00:21]} 1-0


[Site "https://www.chess.com"]

[Event "Titled Tuesday Blitz May 9 Early 2023"]
[White "Levine, David"]
[Black "Martin Alvarez, Inigo"]
[WhiteFideId "2011611"]
[BlackFideId "2259354"]
[WhiteElo "2123"]
[BlackElo "2321"]
[Result "0-1"]
[Round "07"]
[TimeControl "180+2"]
[Date "2023.05.09"]
[WhiteClock "0:01:08"]
[BlackClock "0:01:49"]

1. d4 {[%clk 0:02:28]}  f5 {[%clk 0:02:58]} 2. g3 {[%clk 0:02:28]}  Nf6 {[%clk 0:02:59]} 3. Bg2 {[%clk 0:02:27]}  g6 {[%clk 0:03:00]} 4. Nf3 {[%clk 0:02:27]}  Bg7 {[%clk 0:03:00]} 5. O-O {[%clk 0:02:27]}  O-O {[%clk 0:03:01]} 6. c4 {[%clk 0:02:27]}  d6 {[%clk 0:03:01]} 7. Nc3 {[%clk 0:02:27]}  c6 {[%clk 0:02:58]} 8. Re1 {[%clk 0:02:25]}  Qc7 {[%clk 0:02:54]} 9. e4 {[%clk 0:02:24]}  fxe4 {[%clk 0:02:52]} 10. Nxe4 {[%clk 0:02:23]}  e5 {[%clk 0:02:52]} 11. dxe5 {[%clk 0:02:21]}  dxe5 {[%clk 0:02:51]} 12. Qb3 {[%clk 0:02:15]}  Nxe4 {[%clk 0:02:43]} 13. Rxe4 {[%clk 0:02:15]}  Na6 {[%clk 0:02:43]} 14. c5+ {[%clk 0:01:59]}  Kh8 {[%clk 0:02:42]} 15. Qc4 {[%clk 0:01:56]}  Bf5 {[%clk 0:02:38]} 16. Re1 {[%clk 0:01:52]}  Rad8 {[%clk 0:02:36]} 17. b4 {[%clk 0:01:39]}  e4 {[%clk 0:02:32]} 18. Ng5 {[%clk 0:01:23]}  Bxa1 {[%clk 0:02:29]} 19. Bf4 {[%clk 0:01:23]}  Qg7 {[%clk 0:02:18]} 20. Bxe4 {[%clk 0:01:16]}  Bxe4 {[%clk 0:01:59]} 21. Ne6 {[%clk 0:01:14]}  Bd5 {[%clk 0:01:50]} 22. Nxg7 {[%clk 0:01:11]}  Bxc4 {[%clk 0:01:50]} 23. Ne6 {[%clk 0:01:08]}  Bxe6 {[%clk 0:01:49]} 0-1


[Site "https://www.chess.com"]

[Event "Titled Tuesday Blitz May 9 Early 2023"]
[White "Carrasco Miranda, Andres"]
[Black "Flis, Pawel"]
[WhiteFideId "3405990"]
[BlackFideId "1112864"]
[WhiteElo "2183"]
[BlackElo "1822"]
[Result "1-0"]
[Round "07"]
[TimeControl "180+2"]
[Date "2023.05.09"]
[WhiteClock "0:01:14"]
[BlackClock "0:00:57"]

1. d4 {[%clk 0:02:53]}  c5 {[%clk 0:02:59]} 2. d5 {[%clk 0:02:53]}  Nf6 {[%clk 0:02:59]} 3. c4 {[%clk 0:02:53]}  b5 {[%clk 0:02:59]} 4. cxb5 {[%clk 0:02:53]}  a6 {[%clk 0:02:59]} 5. bxa6 {[%clk 0:02:54]}  Bxa6 {[%clk 0:02:59]} 6. Nc3 {[%clk 0:02:55]}  g6 {[%clk 0:02:59]} 7. e4 {[%clk 0:02:55]}  Bxf1 {[%clk 0:02:58]} 8. Kxf1 {[%clk 0:02:56]}  d6 {[%clk 0:02:59]} 9. g3 {[%clk 0:02:56]}  Bg7 {[%clk 0:02:59]} 10. Kg2 {[%clk 0:02:57]}  O-O {[%clk 0:03:00]} 11. Nf3 {[%clk 0:02:58]}  Nbd7 {[%clk 0:03:00]} 12. a4 {[%clk 0:02:57]}  Ra6 {[%clk 0:03:01]} 13. Ra3 {[%clk 0:02:57]}  e6 {[%clk 0:02:52]} 14. dxe6 {[%clk 0:02:56]}  fxe6 {[%clk 0:02:52]} 15. Re1 {[%clk 0:02:56]}  Qa8 {[%clk 0:02:45]} 16. Kg1 {[%clk 0:02:55]}  Ng4 {[%clk 0:02:38]} 17. Bf4 {[%clk 0:02:46]}  Nde5 {[%clk 0:02:27]} 18. Nxe5 {[%clk 0:02:46]}  Nxe5 {[%clk 0:02:27]} 19. Nb5 {[%clk 0:02:29]}  Qc6 {[%clk 0:02:19]} 20. Bxe5 {[%clk 0:02:17]}  Bxe5 {[%clk 0:02:17]} 21. b3 {[%clk 0:02:06]}  d5 {[%clk 0:02:10]} 22. exd5 {[%clk 0:02:02]}  exd5 {[%clk 0:01:59]} 23. Rxe5 {[%clk 0:02:00]}  Qf6 {[%clk 0:01:59]} 24. Re2 {[%clk 0:01:59]}  d4 {[%clk 0:01:59]} 25. Raa2 {[%clk 0:01:51]}  Rf7 {[%clk 0:01:46]} 26. Rac2 {[%clk 0:01:47]}  Qc6 {[%clk 0:01:39]} 27. Re5 {[%clk 0:01:40]}  Rf3 {[%clk 0:01:25]} 28. Nxd4 {[%clk 0:01:35]}  Qd6 {[%clk 0:01:12]} 29. Qxf3 {[%clk 0:01:18]}  Qxe5 {[%clk 0:01:05]} 30. Re2 {[%clk 0:01:14]}  Qxd4 {[%clk 0:00:56]} 31. Re8+ {[%clk 0:01:14]}  Kg7 {[%clk 0:00:57]} 32. Qf8# {[%clk 0:01:14]} 1-0


[Site "https://www.chess.com"]

[Event "Titled Tuesday Blitz May 9 Early 2023"]
[White "Maluco_do_Natal_00"]
[Black "Quirke, Jeffrey"]
[BlackFideId "2013029"]
[WhiteElo "2024"]
[BlackElo "2207"]
[Result "0-1"]
[Round "07"]
[TimeControl "180+2"]
[Date "2023.05.09"]
[WhiteClock "0:00:00"]
[BlackClock "0:00:06"]

1. e4 {[%clk 0:02:54]}  Nf6 {[%clk 0:02:59]} 2. e5 {[%clk 0:02:51]}  Nd5 {[%clk 0:02:59]} 3. c4 {[%clk 0:02:52]}  Nb6 {[%clk 0:02:59]} 4. d4 {[%clk 0:02:52]}  d6 {[%clk 0:02:58]} 5. exd6 {[%clk 0:02:53]}  exd6 {[%clk 0:02:58]} 6. Be3 {[%clk 0:02:53]}  Be7 {[%clk 0:02:58]} 7. Nc3 {[%clk 0:02:52]}  O-O {[%clk 0:02:57]} 8. Rc1 {[%clk 0:02:46]}  Bf5 {[%clk 0:02:49]} 9. Bd3 {[%clk 0:02:44]}  Bxd3 {[%clk 0:02:48]} 10. Qxd3 {[%clk 0:02:44]}  Nc6 {[%clk 0:02:47]} 11. b3 {[%clk 0:02:38]}  Bf6 {[%clk 0:02:47]} 12. Nf3 {[%clk 0:02:37]}  a5 {[%clk 0:02:44]} 13. O-O {[%clk 0:02:19]}  a4 {[%clk 0:02:20]} 14. Ne4 {[%clk 0:02:16]}  axb3 {[%clk 0:01:54]} 15. axb3 {[%clk 0:02:13]}  Re8 {[%clk 0:01:43]} 16. Ra1 {[%clk 0:01:47]}  h6 {[%clk 0:01:23]} 17. Rxa8 {[%clk 0:01:39]}  Nxa8 {[%clk 0:01:24]} 18. Ng3 {[%clk 0:01:21]}  Nb6 {[%clk 0:01:23]} 19. Nh5 {[%clk 0:00:56]}  d5 {[%clk 0:01:17]} 20. c5 {[%clk 0:00:51]}  Nd7 {[%clk 0:01:15]} 21. Rb1 {[%clk 0:00:36]}  Be7 {[%clk 0:00:45]} 22. b4 {[%clk 0:00:32]}  Bf8 {[%clk 0:00:39]} 23. b5 {[%clk 0:00:32]}  Ne7 {[%clk 0:00:39]} 24. Bf4 {[%clk 0:00:15]}  Ng6 {[%clk 0:00:37]} 25. Be3 {[%clk 0:00:12]}  Nf6 {[%clk 0:00:35]} 26. Ng3 {[%clk 0:00:09]}  Ne4 {[%clk 0:00:31]} 27. Qc2 {[%clk 0:00:09]}  b6 {[%clk 0:00:27]} 28. c6 {[%clk 0:00:07]}  Bd6 {[%clk 0:00:26]} 29. Nxe4 {[%clk 0:00:06]}  dxe4 {[%clk 0:00:22]} 30. Nd2 {[%clk 0:00:06]}  Qf6 {[%clk 0:00:20]} 31. Rc1 {[%clk 0:00:03]}  Qh4 {[%clk 0:00:16]} 32. Nf1 {[%clk 0:00:04]}  Qh5 {[%clk 0:00:13]} 33. Qd1 {[%clk 0:00:03]}  Qd5 {[%clk 0:00:12]} 34. Rb1 {[%clk 0:00:03]}  f5 {[%clk 0:00:09]} 35. Qh5 {[%clk 0:00:02]}  Qe6 {[%clk 0:00:04]} 36. g3 {[%clk 0:00:03]}  f4 {[%clk 0:00:04]} 37. gxf4 {[%clk 0:00:02]}  Nxf4 {[%clk 0:00:04]} 38. Bxf4 {[%clk 0:00:01]}  Bxf4 {[%clk 0:00:05]} 39. Ne3 {[%clk 0:00:01]}  Bxe3 {[%clk 0:00:05]} 40. fxe3 {[%clk 0:00:00]}  Rf8 {[%clk 0:00:06]} 0-1


[Site "https://www.chess.com"]

[Event "Titled Tuesday Blitz May 9 Early 2023"]
[White "Floresvillar Gonzalez, Luis Migu"]
[Black "Castillo Pena, Patricia Evarista"]
[WhiteFideId "5100542"]
[BlackFideId "6412106"]
[WhiteElo "2040"]
[BlackElo "1919"]
[Result "1/2-1/2"]
[Round "07"]
[TimeControl "180+2"]
[Date "2023.05.09"]
[WhiteClock "0:00:16"]
[BlackClock "0:00:04"]

1. e4 {[%clk 0:03:00]}  c5 {[%clk 0:02:59]} 2. d4 {[%clk 0:02:53]}  cxd4 {[%clk 0:02:48]} 3. c3 {[%clk 0:02:53]}  dxc3 {[%clk 0:02:48]} 4. Nxc3 {[%clk 0:02:53]}  Nc6 {[%clk 0:02:48]} 5. Nf3 {[%clk 0:02:50]}  e6 {[%clk 0:02:48]} 6. Bc4 {[%clk 0:02:49]}  Bb4 {[%clk 0:02:46]} 7. Qe2 {[%clk 0:02:48]}  Nge7 {[%clk 0:02:44]} 8. Bg5 {[%clk 0:02:44]}  f6 {[%clk 0:02:32]} 9. Bd2 {[%clk 0:02:35]}  O-O {[%clk 0:02:21]} 10. O-O {[%clk 0:02:35]}  d5 {[%clk 0:02:09]} 11. exd5 {[%clk 0:02:26]}  exd5 {[%clk 0:02:08]} 12. Bb3 {[%clk 0:01:59]}  Bg4 {[%clk 0:02:03]} 13. h3 {[%clk 0:01:56]}  Bxf3 {[%clk 0:01:53]} 14. Qxf3 {[%clk 0:01:55]}  Nd4 {[%clk 0:01:46]} 15. Qg4 {[%clk 0:01:31]}  Nxb3 {[%clk 0:01:43]} 16. axb3 {[%clk 0:01:25]}  Bc5 {[%clk 0:01:27]} 17. Rad1 {[%clk 0:01:15]}  Qc8 {[%clk 0:01:14]} 18. Qh5 {[%clk 0:01:00]}  Qf5 {[%clk 0:01:04]} 19. Qe2 {[%clk 0:00:56]}  Rfe8 {[%clk 0:01:01]} 20. Qb5 {[%clk 0:00:55]}  b6 {[%clk 0:00:55]} 21. b4 {[%clk 0:00:48]}  Bd6 {[%clk 0:00:54]} 22. Be3 {[%clk 0:00:44]}  Qe5 {[%clk 0:00:44]} 23. g3 {[%clk 0:00:41]}  Rac8 {[%clk 0:00:39]} 24. Nxd5 {[%clk 0:00:39]}  Nxd5 {[%clk 0:00:38]} 25. Qxd5+ {[%clk 0:00:39]}  Qxd5 {[%clk 0:00:36]} 26. Rxd5 {[%clk 0:00:39]}  Bxg3 {[%clk 0:00:35]} 27. Bxb6 {[%clk 0:00:37]}  axb6 {[%clk 0:00:32]} 28. fxg3 {[%clk 0:00:36]}  Re2 {[%clk 0:00:33]} 29. Rf2 {[%clk 0:00:35]}  Rc1+ {[%clk 0:00:32]} 30. Kg2 {[%clk 0:00:35]}  Rxf2+ {[%clk 0:00:31]} 31. Kxf2 {[%clk 0:00:35]}  Rc2+ {[%clk 0:00:31]} 32. Kf3 {[%clk 0:00:33]}  Rxb2 {[%clk 0:00:32]} 33. Rb5 {[%clk 0:00:33]}  Kf7 {[%clk 0:00:30]} 34. Rxb6 {[%clk 0:00:33]}  h5 {[%clk 0:00:30]} 35. h4 {[%clk 0:00:33]}  Kg6 {[%clk 0:00:28]} 36. Kf4 {[%clk 0:00:33]}  Rf2+ {[%clk 0:00:26]} 37. Ke3 {[%clk 0:00:32]}  Rb2 {[%clk 0:00:26]} 38. Kf4 {[%clk 0:00:31]}  Rf2+ {[%clk 0:00:26]} 39. Ke3 {[%clk 0:00:32]}  Rb2 {[%clk 0:00:26]} 40. Kf3 {[%clk 0:00:31]}  Kf5 {[%clk 0:00:24]} 41. Rb5+ {[%clk 0:00:31]}  Kg6 {[%clk 0:00:24]} 42. Rb7 {[%clk 0:00:31]}  Rb3+ {[%clk 0:00:17]} 43. Kf4 {[%clk 0:00:30]}  Rb1 {[%clk 0:00:16]} 44. Rb5 {[%clk 0:00:27]}  Rf1+ {[%clk 0:00:14]} 45. Ke3 {[%clk 0:00:27]}  Rb1 {[%clk 0:00:14]} 46. Kf3 {[%clk 0:00:26]}  Rf1+ {[%clk 0:00:14]} 47. Kg2 {[%clk 0:00:26]}  Rb1 {[%clk 0:00:14]} 48. Kh3 {[%clk 0:00:25]}  Rb3 {[%clk 0:00:12]} 49. Rb7 {[%clk 0:00:24]}  Rb2 {[%clk 0:00:09]} 50. b5 {[%clk 0:00:24]}  Rb1 {[%clk 0:00:06]} 51. b6 {[%clk 0:00:23]}  Rb2 {[%clk 0:00:06]} 52. Rb8 {[%clk 0:00:21]}  Kf5 {[%clk 0:00:04]} 53. Rg8 {[%clk 0:00:20]}  g5 {[%clk 0:00:03]} 54. hxg5 {[%clk 0:00:18]}  fxg5 {[%clk 0:00:03]} 55. Rf8+ {[%clk 0:00:16]}  Kg6 {[%clk 0:00:02]} 56. Rg8+ {[%clk 0:00:16]}  Kf5 {[%clk 0:00:03]} 57. Rf8+ {[%clk 0:00:16]}  Kg6 {[%clk 0:00:03]} 58. Rg8+ {[%clk 0:00:16]}  Kf5 {[%clk 0:00:04]} 1/2-1/2


[Site "https://www.chess.com"]

[Event "Titled Tuesday Blitz May 9 Early 2023"]
[White "petr577"]
[Black "Vargas, Mauricio"]
[BlackFideId "4404572"]
[WhiteElo "2188"]
[BlackElo "1986"]
[Result "1-0"]
[Round "07"]
[TimeControl "180+2"]
[Date "2023.05.09"]
[WhiteClock "0:02:01"]
[BlackClock "0:01:29"]

1. e4 {[%clk 0:02:50]}  c5 {[%clk 0:02:58]} 2. Nf3 {[%clk 0:02:50]}  Nc6 {[%clk 0:02:57]} 3. Bb5 {[%clk 0:02:51]}  Nd4 {[%clk 0:02:53]} 4. Nxd4 {[%clk 0:02:48]}  cxd4 {[%clk 0:02:53]} 5. O-O {[%clk 0:02:47]}  e5 {[%clk 0:02:49]} 6. d3 {[%clk 0:02:44]}  Nf6 {[%clk 0:02:41]} 7. f4 {[%clk 0:02:43]}  a6 {[%clk 0:02:30]} 8. fxe5 {[%clk 0:02:43]}  Nxe4 {[%clk 0:02:23]} 9. dxe4 {[%clk 0:02:36]}  axb5 {[%clk 0:02:22]} 10. Qxd4 {[%clk 0:02:36]}  d6 {[%clk 0:02:10]} 11. Nc3 {[%clk 0:02:30]}  b4 {[%clk 0:02:02]} 12. Nd5 {[%clk 0:02:26]}  dxe5 {[%clk 0:01:55]} 13. Qxe5+ {[%clk 0:02:27]}  Be6 {[%clk 0:01:54]} 14. Nc7+ {[%clk 0:02:26]}  Ke7 {[%clk 0:01:42]} 15. Bg5+ {[%clk 0:02:01]}  f6 {[%clk 0:01:29]} 16. Qxe6# {[%clk 0:02:01]} 1-0


[Site "https://www.chess.com"]